[Event "Ceara-ch 2019"]
[Site "Fortaleza"]
[Date "2019.11.23"]
[Round "3.5"]
[White "Barreto, Paulo Robson Rodrigu"]
[Black "Brandao, Marcius Gomes"]
[Result "1-0"]
[ECO "B27"]
[WhiteElo "1692"]
[BlackElo "2002"]
[Annotator "NA RC"]
[PlyCount "111"]
[EventDate "2019.11.17"]
[EventType "tourn"]
[EventCountry "BRA"]
[SourceTitle "playchess.com"]
[Source "ChessBase"]
[SourceQuality "1"]
[TimeControl "5400+30"]

{[%evp 32,111,41,22,39,28,70,45,62,19,22,0,72,45,63,65,84,81,117,111,285,128,140,106,107,96,97,95,104,104,102,76,76,17,159,180,247,269,398,442,593,672,694,728,32767,771,632,573,330,337,347,367,408,358,419,385,370,422,456,341,547,435,513,566,590,570,482,620,653,686,508,687,607,754,730,751,605,705,773,916,887,999]} 1. e4 {[%emt 0:00:00]} c5 {[%emt 0:06:21]} 2. Nf3 {[%emt 0:00:00]} g6 {[%emt 0:00:05]} 3. c3 {[%emt 0:00:03]} Bg7 {[%emt 0:00:54]} 4. d4 {[%emt 0:00:26]} cxd4 {[%emt 0:00:01]} 5. cxd4 {[%emt 0:00:14]} d5 {[%emt 0:00:02]} 6. e5 {[%emt 0:00:25]} Bg4 {[%emt 0:00:37]} 7. Bb5+ {[%emt 0:01:35]} Nc6 {[%emt 0:01:09]} 8. Bxc6+ {[%emt 0:01:15]} bxc6 {[%emt 0:00:02]} 9. Nbd2 {[%emt 0:00:19]} f6 {[%emt 0:00:56] B27: Sicilian: 2 Nf3, unusual Black 2nd moves} (9... a5 10. h3 Bf5 11. O-O a4 12. Re1 Qb6 13. Nb1 Bd7 14. Nc3 Qa7 15. Bf4 e6 16. Qd2 c5 17. dxc5 Qxc5 {1-0 (53) Berelowitsch,A (2522)-Cicak,S (2512) Germany 2017}) 10. O-O {[%emt 0:07:57]} Nh6 {[%emt 0:04:21]} 11. h3 {[%emt 0:07:46]} Bf5 {[%emt 0:00:40]} 12. exf6 $146 {[%emt 0:02:51]} ({Predecessor:} 12. Re1 O-O 13. g4 Bc8 14. e6 Qd6 15. Qe2 c5 16. dxc5 Qxc5 17. Nb3 {1-0 (71) Gutmakher,O (2226)-Barbier,A (1815) Heraklio 2017}) 12... exf6 {[%emt 0:00:17]} 13. Re1+ {[%emt 0:00:39]} Kf7 {[%emt 0:00:13]} 14. g4 {[%emt 0:00:49]} Bd7 {[%emt 0:00:45]} 15. Nb3 {[%emt 0:03:45]} Re8 {[%emt 0:00:31]} 16. Bf4 {[%emt 0:01:24]} g5 {[%emt 0:08:36]} 17. Bg3 {[%emt 0:03:32]} Rxe1+ {[%emt 0:00:19]} 18. Qxe1 {[%emt 0:00:11]} Bf8 {[%emt 0:00:10]} 19. Qd2 {[%emt 0:01:50]} Kg7 {[%emt 0:01:13]} 20. Rc1 {[%emt 0:06:21]} Nf7 {[%emt 0:00:15]} 21. Nc5 {[%emt 0:02:08]} Nd6 {[%emt 0:05:06]} (21... h5 $11 {remains equal.}) 22. Qc2 {[%emt 0:07:54]} Rc8 {[%emt 0:06:12]} 23. Nd2 {[%emt 0:05:05]} Nb5 {[%emt 0:00:52]} 24. Ndb3 {[%emt 0:03:43]} Bxc5 {[%emt 0:14:40]} 25. Qxc5 {[%emt 0:00:48]} Qf8 {[%emt 0:00:25]} (25... Nc7 $142 26. Re1 (26. Qxa7 Ne6 $16) 26... Ne6) 26. Qxf8+ {[%emt 0:11:26]} (26. a4 $18) 26... Kxf8 {[%emt 0:00:40]} 27. a4 {[%emt 0:00:08]} Nc7 {[%emt 0:01:14]} 28. Bd6+ {[%emt 0:00:57]} Kf7 {[%emt 0:20:02]} 29. Nc5 {[%emt 0:00:16]} Ne8 {[%emt 0:01:20]} 30. Bg3 {[%emt 0:04:54]} ({Reject} 30. Nxd7 $6 Nxd6 31. Kg2 h5 $11) 30... Be6 {[%emt 0:02:13]} 31. Re1 {[%emt 0:04:10]} Ng7 {[%emt 0:00:37]} 32. f4 {[%emt 0:01:38]} f5 {[%emt 0:06:16]} (32... gxf4 $1 $11 33. Bxf4 Rg8) 33. fxg5 {[%emt 0:06:23]} fxg4 {[%emt 0:01:19]} 34. Be5 {[%emt 0:00:15]} Nf5 $2 {[%emt 0:09:26]} (34... Ne8 {is a better defense.} 35. h4 Bf5) 35. hxg4 {[%emt 0:06:42]} Nh4 {[%emt 0:00:48]} 36. Rf1+ {[%emt 0:01:22]} Ke7 {[%emt 0:00:14]} 37. Rf6 {[%emt 0:01:00]} Bf7 {[%emt 0:01:27]} 38. Bd6+ {[%emt 0:00:32]} Ke8 {[%emt 0:00:20]} 39. Rf2 {[%emt 0:00:27]} Ng6 {[%emt 0:01:15]} 40. b4 {[%emt 0:03:21]} Bg8 {[%emt 0:01:35]} 41. a5 {[%emt 0:00:16]} Rd8 {[%emt 0:01:01]} 42. Bc7 {[%emt 0:01:19]} Rc8 {[%emt 0:00:33]} 43. Bg3 {[%emt 0:00:29]} Ke7 {[%emt 0:01:24]} 44. Rf6 {[%emt 0:00:29]} Bf7 {[%emt 0:00:32]} 45. Nb7 {[%emt 0:00:55]} Bg8 {[%emt 0:01:51]} (45... Be6 {was called for.} 46. Bd6+ Kd7) 46. a6 {[%emt 0:00:56]} Kd7 {[%emt 0:01:06]} 47. Nc5+ {[%emt 0:00:24]} Ke7 {[%emt 0:00:12]} 48. Bd6+ {[%emt 0:01:01]} Ke8 {[%emt 0:00:04]} 49. Rf2 {[%emt 0:00:36]} Rd8 {[%emt 0:00:56]} 50. Nb7 {[%emt 0:00:59]} Rc8 {[%emt 0:00:40]} 51. Bc5 {[%emt 0:00:42]} Ra8 {[%emt 0:00:06]} 52. Rf6 {[%emt 0:00:45]} Kd7 {[%emt 0:00:25]} 53. Rd6+ {[%emt 0:00:28]} Kc7 {[%emt 0:00:36]} 54. Na5 {[%emt 0:00:08]} Ne7 {[%emt 0:00:30]} 55. Rf6 {[%emt 0:00:14]} Re8 {[%emt 0:01:43]} 56. Bxa7 $18 {[%emt 0:00:10]} 1-0

[Event "Ceara-ch 2019"]
[Site "Fortaleza"]
[Date "2019.11.24"]
[Round "4.2"]
[White "Lima, Alan Elkinson Lopes "]
[Black "Barreto, Paulo Robson Rodrigu"]
[Result "1/2-1/2"]
[ECO "E06"]
[WhiteElo "1928"]
[BlackElo "1692"]
[Annotator "NA RC"]
[PlyCount "41"]
[EventDate "2019.11.17"]
[EventType "tourn"]
[EventCountry "BRA"]
[SourceTitle "playchess.com"]
[Source "ChessBase"]
[SourceQuality "1"]
[TimeControl "5400+30"]

{[%evp 8,40,13,24,20,18,37,29,45,56,60,43,33,11,25,26,41,25,71,56,41,47,69,52,64,26,62,43,47,42,29,34,39,41,40]} 1. d4 {[%emt 0:00:00]} Nf6 {[%emt 0:00:00]} 2. Nf3 {[%emt 0:00:00]} d5 {[%emt 0:01:01]} 3. c4 {[%emt 0:01:07]} e6 {[%emt 0:01:59]} 4. g3 {[%emt 0:00:40]} Be7 {[%emt 0:00:42]} 5. Bg2 {[%emt 0:00:39]} O-O {[%emt 0:01:10]} 6. O-O {[%emt 0:01:03]} c5 {[%emt 0:05:33]} 7. cxd5 {[%emt 0:06:43]} Nxd5 {[%emt 0:02:34]} 8. dxc5 {[%emt 0:01:57]} Bxc5 {[%emt 0:01:53]} 9. a3 {[%emt 0:00:27]} Nc6 {[%emt 0:06:51]} 10. b4 {[%emt 0:01:29]} Be7 {[%emt 0:02:36]} 11. Bb2 {[%emt 0:00:18] E06: Closed Catalan: Early deviations} Bf6 {[%emt 0:00:53]} 12. Qb3 {[%emt 0:02:42]} (12. Bxf6 Qxf6 13. Ra2 Bd7 14. Qc1 Rfc8 15. Qb2 a5 16. bxa5 Qxb2 17. Rxb2 Nxa5 18. Ne5 Be8 {0-1 (38) Blomqvist,E (2567)-Safarli,E (2691) London 2016}) 12... Bxb2 {[%emt 0:12:55]} 13. Qxb2 {[%emt 0:00:05]} Bd7 {[%emt 0:01:25]} 14. Nbd2 {[%emt 0:02:42]} Rc8 {[%emt 0:15:26]} 15. Rac1 {[%emt 0:04:48]} Qe7 {[%emt 0:05:44]} 16. Rfd1 $146 {[%emt 0:04:38]} ({Predecessor:} 16. Nc4 b6 17. Rfd1 Rfd8 18. e4 Nf6 {1-0 (38) Bochev,K (2075)-Yordanov,I (1624) Teteven 2018}) 16... Rfd8 {[%emt 0:01:52]} 17. e4 {[%emt 0:14:53]} Nb6 {[%emt 0:02:53]} 18. e5 {[%emt 0:02:18]} Be8 {[%emt 0:07:25]} 19. Ne4 {[%emt 0:02:22]} Rxd1+ {[%emt 0:01:32]} 20. Rxd1 {[%emt 0:00:08]} Rd8 $14 {[%emt 0:02:25]} 21. Qc2 {[%emt 0:10:10]} 1/2-1/2

[Event "Ceara-ch 2019"]
[Site "Fortaleza"]
[Date "2019.11.24"]
[Round "4.3"]
[White "Silveira, Jose Wanderley Macie"]
[Black "Lima, Helio Viana Correia"]
[Result "1-0"]
[ECO "C45"]
[WhiteElo "1762"]
[BlackElo "1950"]
[Annotator "NA RC"]
[PlyCount "51"]
[EventDate "2019.11.17"]
[EventType "tourn"]
[EventCountry "BRA"]
[SourceTitle "playchess.com"]
[Source "ChessBase"]
[SourceQuality "1"]
[TimeControl "5400+30"]

{[%evp 8,51,-6,14,12,-14,-14,0,50,-27,-6,-24,0,0,8,0,0,-29,106,110,145,128,109,106,128,118,1528,1401,1485,504,32767,32767,32767,32767,32767,630,513,433,520,488,29968,682,29986,505,29986,29987]} 1. e4 {[%emt 0:00:00]} e5 {[%emt 0:23:48]} 2. Nf3 {[%emt 0:00:06]} Nc6 {[%emt 0:00:07]} 3. d4 {[%emt 0:00:01]} exd4 {[%emt 0:00:07]} 4. Nxd4 {[%emt 0:00:03]} Nf6 {[%emt 0:00:10]} 5. Nxc6 {[%emt 0:00:02]} bxc6 {[%emt 0:00:26]} 6. Qe2 {[%emt 0:00:36] C45: Scotch Game} a5 {[%emt 0:08:28]} 7. e5 {[%emt 0:01:08]} Ba6 {[%emt 0:00:58] [#]} (7... Nd5 $11) 8. c4 $146 {[%emt 0:03:07]} ({Predecessor:} 8. Qf3 $1 $16 Nd5 9. Bxa6 Rxa6 10. O-O Qh4 11. Nd2 Be7 12. Qe2 Ra8 13. Nf3 Qg4 {½-½ (41) Perunovic,M (2620)-Meister,J (2463) Berlin 2014}) 8... Bb4+ {[%emt 0:00:29]} 9. Nd2 {[%emt 0:01:24]} O-O $1 {[%emt 0:01:38]} 10. a3 {[%emt 0:01:02]} Bxd2+ {[%emt 0:03:39]} 11. Bxd2 {[%emt 0:00:27]} Re8 {[%emt 0:04:17]} 12. Bg5 {[%emt 0:02:11] Pin} Qb8 {[%emt 0:13:32] [#]} (12... d6 $11 {keeps the balance.} 13. O-O-O Rxe5 14. Qxe5 dxe5 15. Rxd8+ Rxd8) 13. O-O-O $1 {[%emt 0:02:01]} ({Of course not} 13. Bxf6 gxf6 14. Qg4+ Kf8 $14) 13... Nd5 {[%emt 0:00:21] [#]} 14. Qg4 $1 {[%emt 0:02:31]} Ne7 {[%emt 0:04:15]} 15. Rxd7 {[%emt 0:02:05]} Ng6 {[%emt 0:02:22]} 16. e6 $1 {[%emt 0:18:32]} f6 $2 {[%emt 0:00:01] [#]} (16... Rxe6 $16 17. Rd8+ Qxd8 18. Bxd8 Rxd8) 17. Bxf6 $1 {[%emt 0:03:09]} gxf6 {[%emt 0:00:15]} 18. Qh5 {[%emt 0:00:27]} (18. Bd3 $142 f5 19. Qxf5) 18... Re7 {[%emt 0:03:59]} 19. Rxe7 {[%emt 0:00:05]} Nxe7 {[%emt 0:00:02]} 20. Qf7+ {[%emt 0:00:03]} Kh8 {[%emt 0:00:02]} 21. Qxf6+ {[%emt 0:01:19]} ({Weaker is} 21. Qxe7 Qd8 $18) 21... Kg8 {[%emt 0:00:02]} 22. Qf7+ {[%emt 0:00:14]} Kh8 {[%emt 0:00:25]} 23. Qxe7 {[%emt 0:00:39]} Qb3 {[%emt 0:00:51]} (23... Qd8 $18 24. Qf7 Qg5+ 25. f4 Qg7 26. Qxg7+ Kxg7) 24. Qf6+ {[%emt 0:01:03]} Kg8 {[%emt 0:00:02]} 25. Qf7+ {[%emt 0:01:47] Double Attack} Kh8 {[%emt 0:00:01]} 26. e7 {[%emt 0:00:23]} 1-0

[Event "Ceara-ch 2019"]
[Site "Fortaleza"]
[Date "2019.11.24"]
[Round "5.4"]
[White "Barreto, Paulo Robson Rodrigu"]
[Black "Silveira, Jose Wanderley Macie"]
[Result "1-0"]
[ECO "A50"]
[WhiteElo "1692"]
[BlackElo "1762"]
[Annotator "NA RC"]
[PlyCount "71"]
[EventDate "2019.11.17"]
[EventType "tourn"]
[EventCountry "BRA"]
[SourceTitle "playchess.com"]
[Source "ChessBase"]
[SourceQuality "1"]
[TimeControl "5400+30"]

1. Nf3 {[%emt 0:00:00]} b6 {[%emt 0:00:07]} 2. g3 {[%emt 0:00:04]} Bb7 {[%emt 0:00:02]} 3. Bg2 {[%emt 0:00:16]} Nf6 {[%emt 0:00:08]} 4. d4 {[%emt 0:00:37]} d6 {[%emt 0:00:09]} 5. O-O {[%emt 0:00:45]} g6 {[%emt 0:00:02]} 6. c4 {[%emt 0:01:03]} Bg7 {[%emt 0:00:25]} 7. Nc3 {[%emt 0:01:17]} O-O {[%emt 0:00:31]} 8. Qc2 {[%emt 0:03:47]} Nbd7 {[%emt 1:32:36]} 9. Rd1 {[%emt 0:04:12]} a6 {[%emt 0:00:00]} 10. b4 {[%emt 0:03:34]} a5 {[%emt 0:00:00]} 11. b5 {[%emt 0:00:32]} c5 {[%emt 0:00:00]} 12. d5 {[%emt 0:09:59]} Rb8 {[%emt 0:00:00]} 13. Bb2 {[%emt 0:00:27]} Ng4 {[%emt 0:00:00]} 14. h3 {[%emt 0:05:36]} Nge5 {[%emt 0:00:00]} 15. Nxe5 {[%emt 0:00:21]} Nxe5 {[%emt 0:00:00]} 16. Na4 {[%emt 0:00:24]} Bc8 {[%emt 0:00:00]} 17. f4 {[%emt 0:00:29]} Nd7 {[%emt 0:00:00]} 18. e4 {[%emt 0:00:56]} Bxb2 {[%emt 0:00:00]} 19. Qxb2 {[%emt 0:00:18]} f6 {[%emt 0:00:00]} 20. Qd2 {[%emt 0:08:27]} Qe8 {[%emt 0:00:00]} 21. Nb2 {[%emt 0:02:06]} Rf7 {[%emt 0:00:00]} 22. Rac1 {[%emt 0:00:59]} Rg7 {[%emt 0:00:00]} 23. Nd3 {[%emt 0:06:23]} g5 {[%emt 0:00:00]} 24. Kh2 {[%emt 0:04:42]} gxf4 {[%emt 0:00:00]} 25. gxf4 {[%emt 0:00:42]} Qh5 {[%emt 0:00:00]} 26. Qf2 {[%emt 0:01:11]} Nf8 {[%emt 0:00:00]} 27. f5 {[%emt 0:00:31]} Rg5 {[%emt 0:00:00]} 28. Bf3 {[%emt 0:01:06]} Qf7 {[%emt 0:00:00]} 29. h4 {[%emt 0:00:29]} Rg7 {[%emt 0:00:00]} 30. Nf4 {[%emt 0:00:39]} Qe8 {[%emt 0:00:00]} 31. Rg1 {[%emt 0:01:54]} Qd7 {[%emt 0:00:00]} 32. Rxg7+ {[%emt 0:00:35]} Kxg7 {[%emt 0:00:00]} 33. Qg3+ {[%emt 0:00:16]} Kh6 {[%emt 0:00:00]} 34. Rg1 {[%emt 0:00:10]} e5 {[%emt 0:00:00]} 35. dxe6 {[%emt 0:00:55]} Qa7 {[%emt 0:00:00]} 36. Qg4 {[%emt 0:00:09]} 1-0

[Event "Ceara-ch 2019"]
[Site "Fortaleza"]
[Date "2019.11.24"]
[Round "5.5"]
[White "Brandao, Marcius Gomes"]
[Black "Lima, Alan Elkinson Lopes "]
[Result "1-0"]
[ECO "D91"]
[WhiteElo "2002"]
[BlackElo "1928"]
[Annotator "NA RC"]
[PlyCount "77"]
[EventDate "2019.11.17"]
[EventType "tourn"]
[EventCountry "BRA"]
[SourceTitle "playchess.com"]
[Source "ChessBase"]
[SourceQuality "1"]
[TimeControl "5400+30"]

{[%evp 10,76,33,22,14,11,32767,32767,32767,32767,20,32767,0,-7,32767,32767,32767,32767,32767,33,23,29,32767,154,141,140,293,245,233,224,450,281,361,360,448,457,623,461,416,0,581,447,464,447,572,502,627,623,466,566,605,538,32767,755,32767,32767,1258,32767,32767,877,29993,530,29992,29991,29991,29992,29992,29993,29994]} 1. c4 {[%emt 0:00:00]} Nf6 {[%emt 0:00:00]} 2. Nc3 {[%emt 0:00:00]} g6 {[%emt 0:00:00]} 3. d4 {[%emt 0:02:41]} d5 {[%emt 0:00:07]} 4. Bg5 {[%emt 0:00:17]} Ne4 {[%emt 0:00:10]} 5. Bf4 {[%emt 0:00:05]} Nxc3 6. bxc3 {[%emt 0:00:02]} Bg7 {[%emt 0:02:03]} 7. e3 {[%emt 0:00:18]} c5 {[%emt 0:01:22]} 8. Nf3 {[%emt 0:00:56]} Nc6 {[%emt 0:00:54]} 9. Rb1 {[%emt 0:09:58] D91: Grünfeld: 4 Nf3 Bg7 5 Bg5} cxd4 {[%emt 0:03:16]} 10. cxd4 {[%emt 0:00:10]} O-O {[%emt 0:09:11]} 11. Be2 {[%emt 0:05:40]} dxc4 {[%emt 0:02:58]} 12. Bxc4 {[%emt 0:00:08]} Na5 $146 {[%emt 0:00:26]} ({Predecessor:} 12... Bf5 13. Rc1 Qa5+ 14. Qd2 Rac8 15. O-O Qxd2 16. Nxd2 e5 17. dxe5 Nxe5 18. Bxe5 Bxe5 {0-1 (54) Menetrier,M (2505)-Rause,O (2615) Yugoslavia 1998}) 13. Bd3 {[%emt 0:01:40]} Be6 {[%emt 0:05:36]} 14. Qe2 {[%emt 0:01:49]} Rc8 {[%emt 0:01:56]} 15. O-O {[%emt 0:00:24]} Bc4 {[%emt 0:02:20]} 16. Bxc4 {[%emt 0:05:39]} Rxc4 {[%emt 0:00:47] [#]} 17. Rxb7 $1 {[%emt 0:01:47]} Qa8 $2 {[%emt 0:12:23]} (17... Nxb7 $16 {was worth a try.} 18. Qxc4 Nd6 19. Bxd6 Qxd6) 18. Rb5 {[%emt 0:05:40]} Ra4 {[%emt 0:02:28]} 19. Qc2 {[%emt 0:10:36]} Ra3 $2 {[%emt 0:03:28]} (19... Rc4 20. Qb1 Qd8) 20. Rfb1 {[%emt 0:01:05]} Nc6 {[%emt 0:12:09]} 21. h4 {[%emt 0:06:01]} h6 {[%emt 0:02:07]} (21... Qe8 $142 22. h5 Nd8) 22. Rc5 {[%emt 0:01:30]} Na5 {[%emt 0:06:32]} 23. Qb2 {[%emt 0:07:25]} Ra4 {[%emt 0:01:47]} 24. Qc2 $2 {[%emt 0:10:53]} ({White should try} 24. Nd2 $18) 24... Ra3 {[%emt 0:02:40]} 25. Rc7 {[%emt 0:00:15]} Qd5 {[%emt 0:05:15]} 26. Rb2 {[%emt 0:00:50]} a6 {[%emt 0:04:15]} 27. Nd2 {[%emt 0:05:27]} e5 {[%emt 0:01:39]} 28. Rc5 {[%emt 0:00:11]} Qd7 {[%emt 0:01:11]} 29. dxe5 {[%emt 0:03:49]} Rd8 {[%emt 0:00:51]} 30. Ne4 {[%emt 0:10:18]} Qg4 {[%emt 0:04:24]} 31. Nd6 {[%emt 0:02:41]} Qxh4 {[%emt 0:03:13]} 32. Rc8 {[%emt 0:01:09]} Kh7 {[%emt 0:02:32]} 33. Rbb8 {[%emt 0:00:45]} Rd7 {[%emt 0:01:09]} 34. Nxf7 {[%emt 0:03:23]} Rxf7 {[%emt 0:01:56] [#]} 35. e6 {[%emt 0:00:31]} (35. Rh8+ $142 $3 {[%mdl 512]} Bxh8 {[#]} 36. Qc8 $1 {[%mdl 576] Double Attack} Qxf2+ 37. Kxf2 Rf8 38. Qxf8 {[%mdl 64] Double Attack} Rxa2+ 39. Kf3 $1 {[%mdl 512]} Rf2+ 40. Kxf2 h5 41. Qxh8#) 35... Rf5 {[%emt 0:05:15] [#]} 36. Qc7 $1 {[%emt 0:00:56]} g5 {[%emt 0:00:45]} 37. Rg8 {[%emt 0:00:40]} Qxf2+ {[%emt 0:00:50]} 38. Kxf2 {[%emt 0:00:19]} Rxa2+ {[%emt 0:00:10]} 39. Kg1 1-0

[Event "Ceara-ch 2019"]
[Site "Fortaleza"]
[Date "2019.11.26"]
[Round "6.1"]
[White "Da Justa, Saulo Freitas"]
[Black "Lima, Alan Elkinson Lopes "]
[Result "1/2-1/2"]
[ECO "A16"]
[WhiteElo "1911"]
[BlackElo "1928"]
[Annotator "NA RC"]
[PlyCount "100"]
[EventDate "2019.11.17"]
[EventType "tourn"]
[EventCountry "BRA"]
[SourceTitle "playchess.com"]
[Source "ChessBase"]
[SourceQuality "1"]
[TimeControl "5400+30"]

{[%evp 8,99,36,8,18,27,31,-2,25,0,0,-7,14,-13,10,-22,-18,-20,-11,-15,-8,-19,10,-20,2,0,0,0,6,16,37,31,20,15,22,16,22,8,47,42,54,4,16,34,23,-64,-41,-68,-44,-64,-70,-87,-45,-39,-27,-46,-9,-23,0,-41,-14,-27,-15,-20,-14,-61,0,-29,-19,-65,0,0,0,0,0,0,0,0,0,-83,-108,-108,-119,-105,-25,-83,-77,-175,-202,-221,-200,-202,-190,-179]} 1. Nf3 {[%emt 0:00:00]} Nf6 {[%emt 0:00:00]} 2. c4 {[%emt 0:00:02]} g6 {[%emt 0:00:00]} 3. g3 {[%emt 0:00:02]} d5 {[%emt 0:00:29]} 4. Bg2 {[%emt 0:00:08]} Bg7 {[%emt 0:00:11]} 5. O-O {[%emt 1:32:18]} O-O {[%emt 1:31:50]} 6. cxd5 {[%emt 0:00:00]} Nxd5 {[%emt 0:00:00]} 7. Nc3 {[%emt 0:00:00]} Nc6 {[%emt 0:00:00]} 8. Nxd5 {[%emt 0:00:00]} Qxd5 {[%emt 0:00:00]} 9. d3 {[%emt 0:00:00]} e5 {[%emt 0:00:00]} 10. Be3 {[%emt 0:00:00]} Qd8 {[%emt 0:00:00] A16: English Opening: 1...Nf6 with ...d5} 11. Qa4 $146 {[%emt 0:00:00]} ({Predecessor:} 11. Nd2 Nd4 12. Rc1 c6 13. Re1 {½-½ (13) Lewtak,D (2354)-Reza,W (2261) Suwalki 2019}) 11... Nd4 {[%emt 0:00:00]} 12. Nxd4 {[%emt 0:00:00]} exd4 {[%emt 0:00:00]} 13. Bf4 {[%emt 0:00:00]} c6 {[%emt 0:00:00]} 14. b4 {[%emt 0:00:00]} Re8 {[%emt 0:00:00]} 15. Rfe1 {[%emt 0:00:00]} Qb6 {[%emt 0:00:00]} 16. Rab1 {[%emt 0:00:00]} Bg4 {[%emt 0:00:00]} 17. Rb2 {[%emt 0:00:00]} Bf8 {[%emt 0:00:00]} 18. Qa5 {[%emt 0:00:00]} Bf5 {[%emt 0:00:00]} 19. Kf1 {[%emt 0:00:00]} Re7 {[%emt 0:00:00]} 20. Bg5 {[%emt 0:00:00]} Rd7 {[%emt 0:00:00]} 21. a4 {[%emt 0:00:00]} h5 {[%emt 0:00:00]} 22. Bd2 {[%emt 0:00:00]} h4 {[%emt 0:00:00]} 23. gxh4 {[%emt 0:00:00]} Bd6 {[%emt 0:00:00]} 24. h3 {[%emt 0:00:00]} Qd8 {[%emt 0:00:00]} 25. Qxd8+ {[%emt 0:00:00]} Raxd8 {[%emt 0:00:00]} 26. a5 {[%emt 0:00:00]} (26. Bg5 $11) 26... a6 $1 {[%emt 0:00:00]} 27. Rc2 {[%emt 0:00:00]} Be7 {[%emt 0:00:00]} 28. Bg5 {[%emt 0:11:30]} f6 {[%emt 0:00:00]} 29. Bd2 {[%emt 0:00:00]} Be6 {[%emt 0:00:00]} 30. Rb1 {[%emt 0:00:00]} Bd5 {[%emt 0:00:00]} 31. Be4 {[%emt 0:00:00]} Bxe4 {[%emt 0:00:00]} 32. dxe4 {[%emt 0:00:00]} d3 {[%emt 0:00:00]} 33. Rcb2 {[%emt 0:00:00]} Rd4 {[%emt 0:04:18]} 34. exd3 {[%emt 0:00:00]} Rxd3 {[%emt 0:00:38]} 35. Be3 {[%emt 0:00:00]} Kf7 {[%emt 0:00:28]} 36. Ke2 {[%emt 0:00:00]} Ke6 {[%emt 0:01:08]} 37. f3 {[%emt 0:00:00]} Ra3 {[%emt 0:00:46]} 38. Rd2 {[%emt 0:00:00]} Rxd2+ {[%emt 0:01:43]} 39. Bxd2 {[%emt 0:00:00]} Ra2 {[%emt 0:00:08]} 40. Kd3 {[%emt 0:00:00]} Ra3+ {[%emt 0:00:13]} 41. Ke2 {[%emt 0:00:00]} Ra2 {[%emt 0:00:05]} 42. f4 {[%emt 0:00:00]} Bd6 {[%emt 0:01:12]} 43. f5+ {[%emt 0:01:25]} (43. Kd3 $1 $11 {remains equal.}) 43... gxf5 {[%emt 0:00:12]} 44. exf5+ {[%emt 0:00:05]} Kxf5 {[%emt 0:00:14]} 45. Rf1+ {[%emt 0:00:33]} Kg6 {[%emt 0:00:21]} (45... Ke6 $17 46. Re1 Bg3) 46. Kd3 {[%emt 0:03:41]} (46. Rg1+ $11 Kf7 47. Rg4) 46... Ra3+ {[%emt 0:00:50]} 47. Kc4 {[%emt 0:00:03]} (47. Kc2 $1 $15) 47... Rxh3 {[%emt 0:00:55]} 48. Be1 {[%emt 0:00:01]} Kf7 {[%emt 0:03:55]} 49. Rf5 {[%emt 0:01:12]} Ke6 {[%emt 0:00:24]} 50. Rh5 $19 {[%emt 0:00:02]} Re3 {[%emt 0:01:08]} 1/2-1/2

[Event "Ceara-ch 2019"]
[Site "Fortaleza"]
[Date "2019.11.26"]
[Round "6.2"]
[White "Silveira, Jose Wanderley Macie"]
[Black "Brandao, Marcius Gomes"]
[Result "0-1"]
[ECO "B27"]
[WhiteElo "1762"]
[BlackElo "2002"]
[Annotator "NA RC"]
[PlyCount "50"]
[EventDate "2019.11.17"]
[EventType "tourn"]
[EventCountry "BRA"]
[SourceTitle "playchess.com"]
[Source "ChessBase"]
[SourceQuality "1"]
[TimeControl "5400+30"]

{[%evp 8,50,37,34,54,12,33,0,32767,25,21,-12,31,5,15,-27,-8,-23,-26,-73,-85,-145,-168,-191,-193,-339,-358,-368,-370,-727,-739,-716,-660,-613,-685,-631,-677,-766,-656,-775,-734,-756,-752,-1656,-2631]} 1. e4 {[%emt 0:00:00]} c5 {[%emt 0:00:00]} 2. Nf3 {[%emt 0:00:00]} g6 {[%emt 0:00:00]} 3. c3 {[%emt 0:00:00]} d5 {[%emt 0:00:00]} 4. exd5 {[%emt 0:00:55]} (4. e5 Nc6 5. d4 cxd4 6. cxd4 Bg4 7. Bb5 Rc8 8. O-O a6 9. Be2 Nh6 10. h3 Bxf3 11. Bxf3 Nf5 12. Be3 e6 13. Nc3 Bg7 14. Bg4 Nxe3 15. fxe3 {1-0 (42) Caruana,F (2828)-Guseinov,G (2664) chess.com INT 2019}) 4... Qxd5 {[%emt 0:00:00]} 5. Na3 {[%emt 0:01:34]} Bg7 {[%emt 0:00:37]} 6. Bc4 {[%emt 0:00:45] B27: Sicilian: 2 Nf3, unusual Black 2nd moves} Qe4+ {[%emt 0:01:17]} 7. Qe2 {[%emt 0:00:17]} Qxe2+ {[%emt 0:00:52]} 8. Bxe2 {[%emt 0:01:35]} Nf6 $146 {[%emt 0:06:48]} ({Predecessor:} 8... a6 9. O-O Nc6 10. d3 Nf6 11. Be3 b6 12. Nc4 {0-1 (40) Gervais,X-Kalinitschew,S (2517) Illkirch-Graffenstaden 2004}) 9. Nb5 {[%emt 0:00:24]} Na6 {[%emt 0:00:12]} 10. d4 {[%emt 0:00:15]} O-O {[%emt 0:00:35]} 11. dxc5 {[%emt 0:00:29]} Nxc5 {[%emt 0:00:07]} 12. Be3 {[%emt 0:05:13]} b6 {[%emt 0:04:58]} 13. h3 {[%emt 0:18:58]} Nd5 {[%emt 0:02:47]} 14. Bd4 {[%emt 0:03:49]} (14. Bd2 $15) 14... Nf4 {[%emt 0:02:16]} 15. Bxc5 {[%emt 0:10:54]} bxc5 {[%emt 0:00:37]} 16. g3 {[%emt 0:16:37]} (16. Bf1 {was forced.}) 16... Nxe2 {[%emt 0:01:50]} ({Weaker is} 16... Nxh3 17. Rd1 $15) 17. Kxe2 {[%emt 0:00:02]} Rb8 {[%emt 0:00:20]} 18. Nxa7 $2 {[%emt 0:03:03]} (18. a4) 18... Rxb2+ {[%emt 0:00:09]} 19. Ke3 {[%emt 0:09:07]} Bh6+ {[%emt 0:04:40]} 20. Ng5 {[%emt 0:05:54]} Bxg5+ {[%emt 0:00:11]} 21. f4 {[%emt 0:00:06]} Bf6 {[%emt 0:00:55]} 22. Rhb1 {[%emt 0:00:20]} Bxc3 {[%emt 0:00:55]} 23. Rxb2 {[%emt 0:00:12]} Bxb2 {[%emt 0:00:02]} 24. Rb1 {[%emt 0:00:17]} Bd4+ {[%emt 0:00:02]} 25. Ke4 {[%emt 0:00:21]} Bf5+ $19 {[%emt 1:12:20] Kxd4 Skewer} 0-1